Cogmind - Beta 9.1 @@@ ROGUE MODE // 2019.11.06 @ 00:14:51 Player: Korywon Result: Destroyed by L-41 Fighter with Axe Performance ------------- Evolutions (3) 1500 Regions Visited (10) 2000 Robots Destroyed (67) 335 Value Destroyed (2247) 2247 Prototype IDs (4) 80 Alien Tech Used (0) 0 Bonus (456) 456 TOTAL SCORE: 6618 Bonus ------- Follower Combat Kills 156 Aligned with FarCom 300 Cogmind --------- Core Integrity 0/700 Matter 1/300 Energy 100/100 System Corruption 2% Temperature Cool (0) Location -7/Lower Caves Parts ------- Power (1) Propulsion (3) Utility (4) High-capacity Storage Unit Heart of Steel Weapon (5) Inventory (12) High-capacity Matter Pod (200) Improved Light Armor Plating Makeshift Armor Plating Peak State ------------ Power Light Angular Momentum Engine Propulsion Improved Treads Improved Treads Medium Treads Utility High-capacity Storage Unit Heart of Steel Weapon Beamcaster Heavy Ion Cannon Gauss Cannon Inventory High-capacity Storage Unit High-capacity Matter Pod Improved Light Armor Plating Makeshift Armor Plating AWS/Thermal [Rating: 53] Favorites ----------- Power Light Nuclear Core Engine Light Angular Momentum Engine Power Core Light Nuclear Core Propulsion Aluminum Leg Treads Improved Treads Leg Aluminum Leg Utility High-capacity Storage Unit Device Improved Heat Sink Storage High-capacity Storage Unit Processor Improved Signal Interpreter Protection Improved Light Armor Plating Weapon Improved Light Cannon Energy Gun AWS/Thermal Energy Cannon Heavy Ion Cannon Ballistic Gun Light Assault Rifle Ballistic Cannon Improved Light Cannon Launcher Rocket Launcher Build | -11 -10 -10 -9 -9 -9 -8 -8 -7 -7 -7 ------- Run | Scr Mat Min Mat Min Exi Min Mat Fac Low Low Slots Evolved 6 | . . . 2 . . . 2 2 . . Power . | . . . . . . . . . . . Propulsion 1 | . . . 1 . . . . . . . Utility 2 | . . . . . . . 1 1 . . Weapon 3 | . . . 1 . . . 1 1 . . Parts Attached 65 | 8 13 2 4 2 1 4 10 12 8 1 Power 10 | 1 1 . 1 1 . 1 1 3 1 . Engine 5 | 1 1 . 1 . . . . 1 1 . Core 5 | . . . . 1 . 1 1 2 . . Reactor . | . . . . . . . . . . . Propulsion 20 | 4 4 1 1 . . 3 4 1 2 . Treads 11 | 2 1 . 1 . . . 4 1 2 . Leg 9 | 2 3 1 . . . 3 . . . . Wheel . | . . . . . . . . . . . Hover . | . . . . . . . . . . . Flight . | . . . . . . . . . . . Utility 13 | 1 3 1 . . . . 1 3 3 1 Device 4 | . . . . . . . 1 . 2 1 Storage 6 | 1 3 1 . . . . . 1 . . Processor 1 | . . . . . . . . 1 . . Hackware . | . . . . . . . . . . . Protection 2 | . . . . . . . . 1 1 . Artifact . | . . . . . . . . . . . Weapon 22 | 2 5 . 2 1 1 . 4 5 2 . Energy Gun 5 | . 2 . . . 1 . . 1 1 . Energy Cannon 2 | . . . . . . . 1 . 1 . Ballistic Gun 11 | 2 3 . . . . . 3 3 . . Ballistic Cannon 2 | . . . 1 . . . . 1 . . Launcher 2 | . . . 1 1 . . . . . . Special Weapon . | . . . . . . . . . . . Impact Weapon . | . . . . . . . . . . . Slashing Weapon . | . . . . . . . . . . . Piercing Weapon . | . . . . . . . . . . . Special Melee Weapon . | . . . . . . . . . . . Unidentified Prototypes 4 | . . . . . 1 . 1 1 . 1 Parts Lost 18 | . . . . 1 . . . 2 8 7 Power 3 | . . . . . . . . 1 1 1 Propulsion 5 | . . . . . . . . . 2 3 Utility 1 | . . . . . . . . . 1 . Weapon 9 | . . . . 1 . . . 1 4 3 Highest Loss Streak 7 | . . . . 1 . . . 2 4 7 Average Slot Usage (%) 90 | . 90 99 99 100 91 88 89 96 86 68 Engine 4 | . 12 14 11 4 . . . . 4 6 Core 5 | . . . . 6 11 11 9 7 2 . Treads 15 | . 13 2 10 11 11 11 18 23 20 21 Leg 11 | . 14 26 22 22 22 22 8 . . . Device 2 | . . . . . . . 9 2 3 5 Storage 19 | . 24 27 22 22 22 22 18 16 15 8 Processor 1 | . . . . . . . . 5 2 . Protection 2 | . . . . . . . . 4 7 2 Energy Gun 5 | . 4 . . . 7 11 9 6 5 6 Energy Cannon 2 | . . . . . . . . 5 4 6 Ballistic Gun 9 | . 20 28 22 11 3 . 8 12 7 . Ballistic Cannon 8 | . . . 5 11 11 11 9 7 9 6 Launcher 2 | . . . 5 10 3 . . . . . Naked Turns . | . . . . . . . . . . . Heaviest Build 95 | 11 71 69 47 50 53 53 60 95 72 71 Greatest Support 74 | 40 40 20 20 20 20 20 68 69 74 74 Greatest Overweight (x) 23 | . 23 3 2 2 2 2 2 1 1 13 Average Overweight (x) 1 | . 2 2 2 2 2 2 1 . . . Largest Inventory Capacity 20 | 6 20 20 12 12 12 12 12 20 12 12 Average Capacity 12 | 5 16 12 12 12 12 12 12 13 12 12 Most Carried 12 | 6 7 10 10 9 12 12 12 12 9 9 Average Carried 8 | 3 4 8 8 8 10 10 10 8 6 5 Final Capacity 20 | 6 20 12 12 12 12 12 12 12 12 12 Final Carried 11 | 4 7 10 9 9 11 11 11 9 6 3 Class Distribution -------------------- 36% | Mutant 20% | Skirmisher 15% | Gunner 14% | Tank 6% | Scavenger-Skirmisher 5% | Hauler-Mutant Dominant Class ---------------- Hauler-Mutant | -10/Materials Mutant | -10/Mines Gunner | -9/Materials Mutant | -9/Mines Gunner | -9/Exiles Skirmisher | -8/Mines Scavenger-Skirmisher | -8/Materials Skirmisher | -7/Factory Tank | -7/Lower Caves Gunner | -7/Lower Caves Resources | -11 -10 -10 -9 -9 -9 -8 -8 -7 -7 -7 ----------- Run | Scr Mat Min Mat Min Exi Min Mat Fac Low Low Matter Collected 2075 | 172 264 20 43 128 . 106 177 279 433 453 Remotely . | . . . . . . . . . . . Salvage Created 2719 | . 433 . . 125 . 425 416 709 457 154 Parts 139 | . 17 . . 12 . 19 29 44 14 4 Haulers Intercepted . | . . . . . . . . . . . Recyclers Shooed 4 | . 3 . . 1 . . . . . . Parts Field Recycled . | . . . . . . . . . . . Retrieved Matter . | . . . . . . . . . . . Parts Self-Destructed 20 | . . . . . . . . . 11 9 Prevented 6 | . . . . . . . . . 3 3 Kills | -11 -10 -10 -9 -9 -9 -8 -8 -7 -7 -7 ------- Run | Scr Mat Min Mat Min Exi Min Mat Fac Low Low Combat Hostiles Destroyed 56 | . 2 . . 5 . 9 14 10 12 4 Guns 34 | . 2 . . 4 . 7 13 4 4 . Cannons 22 | . . . . 1 . 2 1 6 8 4 Classes Destroyed 12 | . 2 . . 1 . 2 1 6 . . Worker 1 | . . . . . . . . 1 . . Builder 1 | . . . . . . . . 1 . . Tunneler 1 | . . . . . . . . 1 . . Recycler 6 | . 5 . . . . . . 1 . . Watcher 2 | . . . . . . . . 2 . . Swarmer 17 | . 2 . . 3 . . 9 . 3 . Grunt 27 | . . . . 2 . 7 2 3 9 4 Brawler 2 | . . . . . . 1 . 1 . . Duelist 1 | . . . . . . 1 . . . . Sentry 5 | . . . . . . . 3 2 . . Hunter 1 | . . . . . . . . 1 . . Programmer 3 | . . . . . . . . 3 . . Best Kill Streak 8 | . 3 . . 3 . 3 8 4 5 2 Combat Bots Only 8 | . 2 . . 3 . 3 8 4 5 2 Max Kills in Single Turn 2 | . 1 . . 1 . 1 2 2 1 1 Gunslinging . | . . . . . . . . . . . Exploded . | . . . . . . . . . . . Melee . | . . . . . . . . . . . Uniques/NPCs Destroyed . | . . . . . . . . . . . Combat | -11 -10 -10 -9 -9 -9 -8 -8 -7 -7 -7 -------- Run | Scr Mat Min Mat Min Exi Min Mat Fac Low Low Damage Taken 3709 | . 127 . 45 274 . 98 240 678 1154 1093 Core 802 | . 16 . . 54 . . 27 129 88 488 Absorbed by Shields . | . . . . . . . . . . . Core Remaining (%) 93 | 100 . 93 . . . 86 95 . . . Volleys Fired 145 | . 23 . 2 20 . 14 10 25 38 13 Largest 5 | . 2 . 3 3 . 1 2 5 5 3 Hottest 200 | . 70 . 79 79 . 39 64 200 188 188 Shots Fired 415 | . 41 . 6 44 . 38 56 90 107 33 Gun 267 | . 41 . 4 24 . 24 46 51 64 13 Cannon 148 | . . . 2 20 . 14 10 39 43 20 Launcher . | . . . . . . . . . . . Special . | . . . . . . . . . . . Kinetic 257 | . 26 . 6 44 . 14 20 52 88 7 Thermal 143 | . 15 . . . . 24 36 30 12 26 Explosive . | . . . . . . . . . . . Electromagnetic 15 | . . . . . . . . 8 7 . Robot Hit Streak 20 | . 13 . 2 3 . 12 9 20 9 5 Robot Miss Streak 3 | . 3 . 1 3 . 1 2 2 3 3 Penetration Max . | . . . . . . . . . . . Secondary Targets . | . . . . . . . . . . . Autonomous 77 | . . . . . . 24 36 17 . . Shots Hit Robots 279 | . 27 . 4 20 . 33 42 65 67 21 Core Hits 111 | . 13 . . 11 . 14 16 26 22 9 Critical Hits 4 | . . . . . . . . . 4 . Critical Kills 3 | . . . . . . . . . 3 . Critical Parts Destroyed 1 | . . . . . . . . . 1 . Melee Attacks . | . . . . . . . . . . . Impact . | . . . . . . . . . . . Slashing . | . . . . . . . . . . . Piercing . | . . . . . . . . . . . Sneak Attacks . | . . . . . . . . . . . Combat Hostiles . | . . . . . . . . . . . Follow-up Attacks . | . . . . . . . . . . . Damage Inflicted 5368 | . 257 . 10 269 . 822 1024 1250 1241 495 Guns 3482 | . 257 . 10 81 . 611 946 733 655 189 Cannons 1884 | . . . . 188 . 211 78 517 586 304 Explosions . | . . . . . . . . . . . Melee . | . . . . . . . . . . . Ramming 2 | . . . . . . . . . . 2 Kinetic 2290 | . 108 . 10 269 . 211 140 534 930 88 Thermal 2821 | . 149 . . . . 611 884 591 181 405 Explosive . | . . . . . . . . . . . Electromagnetic 255 | . . . . . . . . 125 130 . Impact . | . . . . . . . . . . . Slashing . | . . . . . . . . . . . Piercing . | . . . . . . . . . . . Highest Corruption 3 | . . . . . . . 3 2 2 2 Average Corruption 2 | . . . . . . . 2 1 2 2 Corruption Purged . | . . . . . . . . . . . Effects 46 | . . . . . . . 20 2 12 12 Message Errors 18 | . . . . . . . 8 1 5 4 Matter Fused 4 | . . . . . . . 4 . . . Heat Flow Errors 7 | . . . . . . . 3 . 2 2 Energy Discharges 6 | . . . . . . . 2 . 1 3 Data Loss (minor) 10 | . . . . . . . 3 1 3 3 Weapon Failures 1 | . . . . . . . . . 1 . Overload Shots . | . . . . . . . . . . . Overflow Damage 22 | . . . . . . . . . 22 . Projectiles 22 | . . . . . . . . . 22 . Explosions . | . . . . . . . . . . . Melee . | . . . . . . . . . . . Knockbacks 10 | . . . . 3 . 1 3 1 2 . Impact . | . . . . . . . . . . . Kinetic 9 | . . . . 3 . 1 2 1 2 . Secondary 1 | . . . . . . . 1 . . . Self-Inflicted Damage 1 | . . . . . . . . . . 1 Shots . | . . . . . . . . . . . Rammed 1 | . . . . . . . . . . 1 Targets Rammed 1 | . . . . . . . . . . 1 Kicked . | . . . . . . . . . . . Crushed . | . . . . . . . . . . . Highest Temperature 637 | . 90 . 38 59 . 19 233 596 637 359 Average Temperature 140 | . 34 . 19 20 . 11 83 190 200 134 Received Heat Transfer 1209 | . . . 24 84 . 54 63 156 522 306 Effects 29 | . . . . . . . . 9 18 2 Shutdowns 5 | . . . . . . . . 2 3 . Energy Bleed 1 | . . . . . . . . . 1 . Interference 14 | . . . . . . . . 5 7 2 Matter Decay 4 | . . . . . . . . . 4 . Short Circuit 2 | . . . . . . . . 1 1 . Damage (minor) 2 | . . . . . . . . . 2 . Damage (core) 1 | . . . . . . . . 1 . . Siege Activations . | . . . . . . . . . . . Robots Corrupted . | . . . . . . . . . . . Combat Hostiles . | . . . . . . . . . . . Parts Fried . | . . . . . . . . . . . Impact Corruptions . | . . . . . . . . . . . Robots Melted . | . . . . . . . . . . . Combat Hostiles . | . . . . . . . . . . . Parts Melted 11 | . . . . . . 2 5 2 . 2 Heat Transferred 4070 | . 444 . . . . 777 1147 814 259 629 Parts Sabotaged . | . . . . . . . . . . . Parts Stolen . | . . . . . . . . . . . Parts Stripped . | . . . . . . . . . . . Power Chain Reactions . | . . . . . . . . . . . Missiles Intercepted . | . . . . . . . . . . . Alert | -11 -10 -10 -9 -9 -9 -8 -8 -7 -7 -7 ------- Run | Scr Mat Min Mat Min Exi Min Mat Fac Low Low Peak Influence 291 | . 55 21 57 138 . 143 291 288 . . Average Influence 67 | . 29 14 18 63 . 51 73 148 . . Maximum Alert Level 1 | . . . . . . . 1 1 . . Low Security (%) 94 | . . . . . . . . . . . Level 1 5 | . . . . . . . . . . . Level 2 . | . . . . . . . . . . . Level 3 . | . . . . . . . . . . . Level 4 . | . . . . . . . . . . . Level 5 . | . . . . . . . . . . . High Security . | . . . . . . . . . . . Max Security . | . . . . . . . . . . . Squads Dispatched 3 | . . . . . . . 1 2 . . Investigation . | . . . . . . . . . . . Extermination 2 | . . . . . . . . 2 . . Reinforcement 1 | . . . . . . . 1 . . . Assault . | . . . . . . . . . . . Garrison . | . . . . . . . . . . . Intercept . | . . . . . . . . . . . Construction Impeded . | . . . . . . . . . . . Haulers Reinforced . | . . . . . . . . . . . Stealth | -11 -10 -10 -9 -9 -9 -8 -8 -7 -7 -7 --------- Run | Scr Mat Min Mat Min Exi Min Mat Fac Low Low Distress Signals 3 | . 1 . . . . . 1 1 . . Communications Jammed . | . . . . . . . . . . . Distress Signals . | . . . . . . . . . . . Times Spotted 85 | . 5 . 3 8 . 9 18 15 14 13 Peak Tracking Total 7 | . 4 . 2 3 . 3 7 5 5 4 Tactical Retreats 8 | . 1 . . . . . . 1 2 4 Traps | -11 -10 -10 -9 -9 -9 -8 -8 -7 -7 -7 ------- Run | Scr Mat Min Mat Min Exi Min Mat Fac Low Low Traps Triggered 6 | . 3 . . . . . 2 1 . . Indirectly . | . . . . . . . . . . . Trap Hack Attempts . | . . . . . . . . . . . Triggered . | . . . . . . . . . . . Disarmed . | . . . . . . . . . . . Reprogrammed . | . . . . . . . . . . . Reused . | . . . . . . . . . . . Traps Extracted . | . . . . . . . . . . . Installed . | . . . . . . . . . . . Triggered 2 | . . . . . . . . . . 2 Machines | -11 -10 -10 -9 -9 -9 -8 -8 -7 -7 -7 ---------- Run | Scr Mat Min Mat Min Exi Min Mat Fac Low Low Machines Disabled 5 | . . . . . . . 1 4 . . Max in Single Turn 1 | . . . . . . . 1 1 . . Machines Sabotaged . | . . . . . . . . . . . Garrisons Compromised . | . . . . . . . . . . . Overloaded Fab Kills . | . . . . . . . . . . . Fab Network Shutdowns . | . . . . . . . . . . . Hacking | -11 -10 -10 -9 -9 -9 -8 -8 -7 -7 -7 --------- Run | Scr Mat Min Mat Min Exi Min Mat Fac Low Low Machines Accessed 3 | . . . . . . . . 2 1 . Terminals 1 | . . . . . . . . 1 . . Fabricators . | . . . . . . . . . . . Repair Stations . | . . . . . . . . . . . Recycling Units 1 | . . . . . . . . 1 . . Scanalyzers . | . . . . . . . . . . . Garrison Access . | . . . . . . . . . . . Total Hacks 4 | . . . . . . . . 3 1 . Successful 3 | . . . . . . . . 2 1 . Failed 1 | . . . . . . . . 1 . . Catastrophic . | . . . . . . . . . . . Database Lockouts . | . . . . . . . . . . . Manual 5 | . . . . . 4 . . 1 . . Terminals 1 | . . . . . . . . 1 . . Fabricators . | . . . . . . . . . . . Repair Stations . | . . . . . . . . . . . Recycling Units 2 | . . . . . . . . 2 . . Scanalyzers . | . . . . . . . . . . . Garrison Access . | . . . . . . . . . . . Terminal Hacks 1 | . . . . . . . . . 1 . Open Door 1 | . . . . . . . . . 1 . Fabricator Hacks . | . . . . . . . . . . . Repair Station Hacks . | . . . . . . . . . . . Recycling Unit Hacks 2 | . . . . . . . . 2 . . Retrieve Matter 2 | . . . . . . . . 2 . . Scanalyzer . | . . . . . . . . . . . Garrison Access Hacks . | . . . . . . . . . . . Unauthorized Hacks . | . . . . . . . . . . . Terminals . | . . . . . . . . . . . Fabricators . | . . . . . . . . . . . Repair Stations . | . . . . . . . . . . . Recycling Units . | . . . . . . . . . . . Scanalyzers . | . . . . . . . . . . . Garrison Access . | . . . . . . . . . . . Data Cores Recovered . | . . . . . . . . . . . Used . | . . . . . . . . . . . Hacking Detections 2 | . . . . . . . . 2 . . Full Trace Events . | . . . . . . . . . . . Feedback Events . | . . . . . . . . . . . Feedback Blocked . | . . . . . . . . . . . Robot Schematics Acquired . | . . . . . . . . . . . Robots Built . | . . . . . . . . . . . Matter . | . . . . . . . . . . . Time . | . . . . . . . . . . . Total Robot Build Rating . | . . . . . . . . . . . Part Schematics Acquired . | . . . . . . . . . . . Parts Built . | . . . . . . . . . . . Matter . | . . . . . . . . . . . Time . | . . . . . . . . . . . Total Part Build Rating . | . . . . . . . . . . . Parts Repaired . | . . . . . . . . . . . Time . | . . . . . . . . . . . Parts Recycled . | . . . . . . . . . . . Recycled Matter . | . . . . . . . . . . . Retrieved Matter . | . . . . . . . . . . . Retrieved Components . | . . . . . . . . . . . Parts Scanalyzed . | . . . . . . . . . . . Part Schematics Acquired . | . . . . . . . . . . . Parts Damaged . | . . . . . . . . . . . Bothacking | -11 -10 -10 -9 -9 -9 -8 -8 -7 -7 -7 ------------ Run | Scr Mat Min Mat Min Exi Min Mat Fac Low Low Used RIF Installer . | . . . . . . . . . . . Robots Hacked . | . . . . . . . . . . . Non-combat . | . . . . . . . . . . . Combat . | . . . . . . . . . . . Robot Hacks Applied . | . . . . . . . . . . . Relay Couplers Released . | . . . . . . . . . . . Robots Rewired . | . . . . . . . . . . . Allies Hacked . | . . . . . . . . . . . Hacks Repelled . | . . . . . . . . . . . Allies | -11 -10 -10 -9 -9 -9 -8 -8 -7 -7 -7 -------- Run | Scr Mat Min Mat Min Exi Min Mat Fac Low Low Total Allies 4 | . . 1 . 3 . . . . . . Largest Group 3 | . . 1 1 3 1 1 . . . . Highest-Rated Group 40 | . . 31 31 40 16 16 . . . . Highest-Rated Ally 31 | . . 31 31 16 16 16 . . . . Total Orders . | . . . . . . . . . . . Ally Attacks 25 | . . . 3 22 . . . . . . Total Damage 304 | . . . 65 239 . . . . . . Kills 8 | . . . 2 6 . . . . . . Allies Corrupted . | . . . . . . . . . . . Allies Melted . | . . . . . . . . . . . Intel | -11 -10 -10 -9 -9 -9 -8 -8 -7 -7 -7 ------- Run | Scr Mat Min Mat Min Exi Min Mat Fac Low Low Robot Analysis Total . | . . . . . . . . . . . Derelict Logs Recovered 7 | . . 2 . 2 . . . . 3 . Drone Launches . | . . . . . . . . . . . Drone Recoveries . | . . . . . . . . . . . Exploration | -11 -10 -10 -9 -9 -9 -8 -8 -7 -7 -7 ------------- Run | Scr Mat Min Mat Min Exi Min Mat Fac Low Low Turns Passed 9140 | 120 617 559 344 1392 1036 687 1013 1079 1553 740 Spaces Moved 4678 | 76 263 298 170 672 554 321 503 607 857 357 Core 27 | 21 1 . . . . . . . . 5 Treads 3396 | 22 181 35 118 410 183 128 503 607 857 352 Legs 1255 | 33 81 263 52 262 371 193 . . . . Wheels . | . . . . . . . . . . . Hover . | . . . . . . . . . . . Flight . | . . . . . . . . . . . Fastest Speed 50 | 50 160 180 180 180 180 180 155 155 160 160 Average Speed 177 | 112 200 183 193 192 186 187 177 160 165 167 Slowest Speed 1200 | 160 1200 220 200 200 200 200 200 175 180 700 Overloaded Moves . | . . . . . . . . . . . Propulsion Burnouts . | . . . . . . . . . . . Robots Hopped . | . . . . . . . . . . . Cave-ins Triggered . | . . . . . . . . . . . Exploration Rate (%) 48 | 5 32 82 16 87 93 58 29 13 90 28 Regions Visited 10 Branch Regions 6 Pre-discovered Areas 3 | . . . . 2 . . . . 1 . Known Exits Taken 2 | . . . 1 . . . . 1 . . Unknown Exits Taken 8 | 1 1 1 . 1 1 1 1 . 1 . Scrap Searched 8 | . . 1 . 1 . 1 . . 4 1 Spaces Dug . | . . . . . . . . . . . Terrain Destroyed 22 | . . . 1 1 . 3 2 1 9 5 Melee . | . . . . . . . . . . . Projectile 22 | . . . 1 1 . 3 2 1 9 5 AOE . | . . . . . . . . . . . Actions | -11 -10 -10 -9 -9 -9 -8 -8 -7 -7 -7 --------- Run | Scr Mat Min Mat Min Exi Min Mat Fac Low Low Total 5282 | 112 322 311 184 737 558 396 613 670 910 469 Wait 261 | 17 . 7 . 38 . 41 58 6 2 92 Move 4668 | 75 262 297 169 671 553 320 502 606 856 357 Hop . | . . . . . . . . . . . Pick Up 70 | 10 17 3 4 1 2 7 15 8 3 . Fast Attach . | . . . . . . . . . . . Attach 65 | 8 13 2 4 2 1 4 10 12 8 1 Detach 31 | 2 3 2 2 1 1 3 5 7 2 3 Swap . | . . . . . . . . . . . Drop 37 | . 4 . 3 . 1 7 13 6 1 2 Fire 145 | . 23 . 2 20 . 14 10 25 38 13 Melee . | . . . . . . . . . . . Ram 1 | . . . . . . . . . . 1 Kick . | . . . . . . . . . . . Crush . | . . . . . . . . . . . Escape Stasis . | . . . . . . . . . . . Rewire 4 | . . . . 4 . . . . . . Trap . | . . . . . . . . . . . Miscellaneous . | . . . . . . . . . . . Route ------- -11/Scrapyard -10/Materials (discovered 2 exits: [*Mat] / [*Min]) -10/Mines -9/Materials (discovered 2 exits: *Min x2) -9/Mines (discovered 3 exits: *Mat x2 / *Exi) -9/Exiles (discovered 2 exits: [*Min x2]) -8/Mines -8/Materials -7/Factory -7/Lower Caves -7/Lower Caves (discovered 1 exit: [*Fac]) History --------- Turn | Location | Event 4 | -11/Scrapyard | Discovered new exit (range 15) 121 | -11/Scrapyard | Entered Materials 568 | -10/Materials | Build established: Hauler-Mutant 690 | -10/Materials | Discovered new exit (range 15) 738 | -10/Materials | Discovered new exit (range 15) 738 | -10/Materials | Entered Mines 745 | -10/Mines | Met a Derelict bent on vengeance 1000 | -10/Mines | Learned Materials stockpile data 1056 | -10/Mines | Learned 2 Materials zone layouts 1102 | -10/Mines | Build established: Mutant 1198 | -10/Mines | Received a Rocket Launcher from a helpful Derelict 1250 | -10/Mines | Discovered new exit (range 10) 1251 | -10/Mines | Received a Mining Laser from a helpful Derelict 1297 | -10/Mines | Entered Materials 1297 | -9/Materials | Accompanied by 1 ally 1297 | -9/Materials | Evolved 2 slots: Propulsion x1, Weapon x1 1298 | -9/Materials | Identified exit to Mines 1631 | -9/Materials | Discovered exit to Mines (range 6) 1641 | -9/Materials | Entered Mines 1780 | -9/Mines | Assembled infested the area 1801 | -9/Mines | Met 8R-AWN 1949 | -9/Mines | Discovered new exit (range 5) 2169 | -9/Mines | Discovered new exit (range 13) 2243 | -9/Mines | Assisted by bots powering up and referring to "LRC-V3" 2249 | -9/Mines | Learned Materials emergency access door positions 2484 | -9/Mines | Learned location of Storage (-8) 2627 | -9/Mines | Learned location of Zion (-7) 2663 | -9/Mines | Discovered new exit (range 9) 3033 | -9/Mines | Entered Exiles 3033 | -9/Exiles | Accompanied by 1 ally 3069 | -9/Exiles | Discovered new exit (range 15) 3107 | -9/Exiles | Welcomed by 8R-AWN 3143 | -9/Exiles | Met EX-HEX 3205 | -9/Exiles | Met EX-BIN 3227 | -9/Exiles | Aligned with FarCom system 3229 | -9/Exiles | Given EX-Vault access code 3329 | -9/Exiles | Opened EX-Vault 3345 | -9/Exiles | Found Prototype Energy Gun 3360 | -9/Exiles | Identified AWS/Thermal 3423 | -9/Exiles | Warned to stay clear of 0b10 Research branches 3501 | -9/Exiles | Learned about 8R-AWN's background 3616 | -9/Exiles | Met EX-DEC 3656 | -9/Exiles | Visited The Gauntlet 3666 | -9/Exiles | Build established: Gunner 4051 | -9/Exiles | Discovered new exit (range 12) 4069 | -9/Exiles | Left Exiles lab with AWS/Thermal 4069 | -9/Exiles | Entered Mines 4069 | -8/Mines | Accompanied by 1 ally 4383 | -8/Mines | Build established: Skirmisher 4712 | -8/Mines | Discovered new exit (range 10) 4756 | -8/Mines | Entered Materials 4756 | -8/Materials | Evolved 2 slots: Utility x1, Weapon x1 5070 | -8/Materials | Build established: Scavenger-Skirmisher 5568 | -8/Materials | Destroyed 8 combat bots 5614 | -8/Materials | Build established: Skirmisher 5699 | -8/Materials | Discovered new exit (range 9) 5769 | -8/Materials | Entered Factory 5769 | -7/Factory | Evolved 2 slots: Utility x1, Weapon x1 6643 | -7/Factory | Discovered new exit (range 13) 6847 | -7/Factory | Identified exit to Lower Caves 6848 | -7/Factory | Entered Lower Caves 7137 | -7/Lower Caves | Build established: Tank 7148 | -7/Lower Caves | Learned location of 1 exit from Factory 7453 | -7/Lower Caves | Lost 4 parts (1p1n2w) 7609 | -7/Lower Caves | Learned Factory emergency access door positions 7756 | -7/Lower Caves | Build established: Mutant 7764 | -7/Lower Caves | Discovered new exit (range 15) 7973 | -7/Lower Caves | Found Prototype Device 8126 | -7/Lower Caves | Build established: Tank 8401 | -7/Lower Caves | Entered another Lower Caves area 8549 | -7/Lower Caves | Identified Heart of Steel 8807 | -7/Lower Caves | Discovered new exit (range 10) 8855 | -7/Lower Caves | Build established: Gunner 9114 | -7/Lower Caves | Core integrity fell below 50% 9131 | -7/Lower Caves | Lost 7 parts (1p3n3w) 9132 | -7/Lower Caves | Core integrity fell below 20% 9141 | -7/Lower Caves | Destroyed by L-41 Fighter with Axe Last Messages --------------- 09057_ Imp. Heat Sink self-destruct mechanism malfunctions. 09072_ Acquired 44 matter. 09082_ C-30 ARC bursts open, deploying its payload. 09082_ L-41 Fighter unfolds itself. 09082_ G-47 Trooper unfolds itself. 09083_ Imp. Treads destroyed. 09083_ Gauss Cannon destroyed. 09097_ Imp. Treads destroyed. 09098_ Med. Treads destroyed. 09100_ Lgt. Angular Momentum Engine destroyed. 09100_ Hvy. Ion Cannon destroyed. 09100_ Beamcaster destroyed. 09100_ Searching scrap... 09100_ Found 42 Matter. 09100_ Found Hvy. Mace. 09101_ Acquired 42 matter. 09114_ Slammed into L-41 Fighter. 09132_ System corrupted: Heat flow error (+111). 09135_ Dropped Hcp. Storage Unit. 09136_ Dropped AWS/Thermal. Map ----- +----------------------------------------------------+ | ?????????????????????????????????????????????????? | | ?????????????????????????????????????????????????? | | ?????????????????????????????????????????????????? | | ?????????????????????????????????????????????????? | | ?????????????????????????????????????????????????? | | ?????????????????????????????????????????????????? | | ?????????????????????????????????????????????????? | | ?????????????????????????????????????????????????? | | ?????????????????????????????????????????????????? | | ?????????????????????????????????????????????????? | | ?????????????????????????????????????????????????? | | ?????????????????????????????????????????????????? | | ?????????????????????????????????????????????????? | | ?????????????????????????????????????????????????? | | ?????????????????????????????????????????????????? | | ?????????????????????##?####?????????????????????? | | ?????????????????????# ? #?????????????????????? | | ?????????????????????# """ #?????????????????????? | | ?????????????????????# """ ###???????????????????? | | ?????????????????????# """ ##??????????????????? | | ?????????????????????# """ #??????????????????? | | ??????????????????#?## #??????????????????? | | ??????????????????# # #???????????????????? | | ??????????????????# g #????????????????????? | | ??????????????????# g [! #????????????????????? | | ??????????????????# # @l #????????????????????? | | ??????????????????# ####g ###????????????????????? | | ??????????????????# ???# /#??????????????????????? | | ?????????????????## #### ;#?????????????????????? | | ????????????????## ## ##?????????????????????? | | ????????????##### "# #??????????????????????? | | ?????????? " ## #??????????????????????? | | ????????????????##"" ; #??????????????????????? | | ????????????????# " = #??????????????????????? | | ????????????????##"" = #??????????????????????? | | ?????????????????##"" ##?###??????????????????? | | ??????????????????#### ##?## ##?????????????????? | | ?????????????????????## #??? #?????????????????? | | ??????????????????????#%###?# #?????????????????? | | ??????????????????????# ### #?????????????????? | | ??????????????????????## !## ##????????????????? | | ???????????????????????# # #????????????????? | | ???????????????????????# #????????????????? | | ???????????????????????# " ################## | | ???????????????????????# " # | | ??????????????????????## " # | | ????????????????# ## ######### # ##### | | ????????????????# #???????# # #???? | | ????????????????## ##?????### # #???? | | ?????????????????### ##??????# ##??? | +----------------------------------------------------+ Best States ------------- Heat Dissipation 48 Energy Generation 18 Energy Capacity 250 Matter Stores 500 Matter Capacity 500 Sight Range 16 Terrain Scan Density 10 Armor Coverage 250 Evasion (%) 50 Recoil Reduction 3 Item Schematics ----------------- None Robot Schematics ------------------ None Fabricated ------------ Nothing Alien Tech Used ----------------- None Achievements -------------- None Challenges ------------ None Game ------ Seed ArmorCoordinationDrive Manual? 0 Play Time 01:03:32 Cumulative 52.6 hours Start 2019.11.05 @ 23:06:06 End 2019.11.06 @ 00:14:51 Sessions 1 Manual Loads 0 Difficulty Rogue Special Mode None Game No. 36 Rogue 36 Adventurer 0 Explorer 0 Win Type - Total 0 Types 0/0/0/0/0/0/0 Lore% 16 Gallery% 25 Achievement% 20 Wizard Run 0 Options --------- ASCII 0 Keyboard 0 Movement Arrows Keybinds 0 Fullscreen 1 Font 18/X11Bold Map View 76x50 Tactical HUD 1 Map Filters NONE Filters NONE Steam 1 RUN: 9794c642-664c-480a-9be9-a7c43b87400c